fUSD/lending_fUSD_20250814
["ID","MTS","AMOUNT","RATE_DAILY","PERIOD"]
[379221536,1755195058315,-197.88175706,0.00027397,2]
[379221537,1755195058324,-756.1,0.00027397,2]
[379221538,1755195058334,-756.1,0.00027397,2]
[379221539,1755195058343,-12000.0,0.00027397,7]
[379221540,1755195058354,-756.1,0.00027397,2]
[379221541,1755195058363,-756.1,0.00027397,2]
[379221542,1755195058373,-12000.0,0.00027397,7]
[379221543,1755195058382,-756.1,0.00027397,2]
[379221544,1755195058391,-756.1,0.00027397,2]
[379221545,1755195058401,-400.0,0.00027397,2]
[379221546,1755195058410,-12000.0,0.00027397,7]
[379221547,1755195058420,-756.1,0.00027397,2]
[379221548,1755195058429,-756.1,0.00027397,2]
[379221549,1755195058439,-12000.0,0.00027397,7]
[379221550,1755195058448,-756.1,0.00027397,2]
[379221551,1755195058458,-500.0,0.00027397,2]
[379221552,1755195058467,-251.21061,0.00027397,2]
[379221553,1755195058481,-756.1,0.00027397,2]
[379221554,1755195058491,-500.0,0.00027397,2]
[379221555,1755195058500,-756.1,0.00027397,2]
[379221556,1755195058509,-500.0,0.00027397,2]
[379221557,1755195058518,-756.1,0.00027397,2]
[379221558,1755195058528,-500.0,0.00027397,2]
[379221559,1755195058539,-400.0,0.00027397,2]
[379221560,1755195058548,-756.24943522,0.00027397,2]
[379221561,1755195058558,-500.0,0.00027397,2]
[379221562,1755195058567,-12000.0,0.00027397,7]
[379221563,1755195058578,-400.0,0.00027397,2]
[379221564,1755195058589,-400.0,0.00027397,2]
[379221565,1755195058599,-500.0,0.00027397,2]
[379221566,1755195058608,-500.0,0.00027397,2]
[379221567,1755195058618,-12000.0,0.00027397,7]
[379221568,1755195058628,-430.58,0.00027397,2]
[379221569,1755195058637,-1095.21,0.00027397,2]
[379221570,1755195058647,-500.0,0.00027397,2]
[379221571,1755195058656,-400.0,0.00027397,2]
[379221572,1755195058666,-500.0,0.00027397,2]
[379221573,1755195058676,-12000.0,0.00027397,7]
[379221574,1755195058685,-1261.56,0.00027397,2]
[379221575,1755195058695,-500.0,0.00027397,2]
[379221576,1755195058704,-400.0,0.00027397,2]
[379221577,1755195058713,-500.0,0.00027397,2]
[379221578,1755195058724,-12000.0,0.00027397,7]
[379221579,1755195058734,-500.0,0.00027397,2]
[379221580,1755195058744,-169.12713066,0.00027397,2]
[379221581,1755195058754,-500.0,0.00027397,2]
[379221582,1755195058764,-1726.82,0.00027397,2]
[379221583,1755195058774,-794.36,0.00027397,2]
[379221584,1755195058784,-500.0,0.00027397,2]
[379221585,1755195058793,-500.0,0.00027397,2]
[379221586,1755195058803,-12000.0,0.00027397,7]
[379221587,1755195058813,-152.10294,0.00027397,7]
[379221588,1755195058823,-6425.25,0.00027397,2]
[379221589,1755195058832,-12000.0,0.00027397,7]
[379221590,1755195058841,-500.0,0.00027397,2]
[379221591,1755195058851,-500.0,0.00027397,2]
[379221592,1755195058862,-12000.0,0.00027397,7]
[379221593,1755195058876,-500.0,0.00027397,2]
[379221594,1755195058886,-1817.6,0.00027397,2]
[379221595,1755195058897,-533.16,0.00027397,2]
[379221596,1755195058907,-400.0,0.00027397,2]
[379221597,1755195058917,-12000.0,0.00027397,7]
[379221598,1755195058926,-596.48,0.00027397,2]
[379221599,1755195058936,-475.07,0.00027397,2]
[379221600,1755195058946,-2135.45,0.00027397,2]
[379221601,1755195058956,-12000.0,0.00027397,7]
[379221602,1755195058966,-12000.0,0.00027397,7]
[379221603,1755195058976,-2842.37,0.00027397,2]
[379221604,1755195058985,-400.0,0.00027397,2]
[379221605,1755195058995,-12000.0,0.00027397,7]
[379221606,1755195059004,-12000.0,0.00027397,7]
[379221607,1755195059014,-400.0,0.00027397,2]
[379221608,1755195059023,-1878.51,0.00027397,2]
[379221609,1755195059033,-12000.0,0.00027397,7]
[379221610,1755195059043,-400.0,0.00027397,2]
[379221611,1755195059052,-12000.0,0.00027397,7]
[379221612,1755195059063,-12000.0,0.00027397,7]
[379221613,1755195059072,-12000.0,0.00027397,7]
[379221614,1755195059083,-561.07,0.00027397,2]
[379221615,1755195059092,-11137.87074485,0.00027397,7]
[379221616,1755195060902,-862.12925515,0.00027397,7]
[379221617,1755195060913,-400.0,0.00027397,2]
[379221618,1755195060923,-12000.0,0.00027397,7]
[379221619,1755195060933,-1936.31,0.00027397,2]
[379221620,1755195060943,-12000.0,0.00027397,7]
[379221621,1755195060953,-2866.32,0.00027397,2]
[379221622,1755195060964,-776.2,0.00027397,2]
[379221623,1755195060973,-2108.37,0.00027397,2]
[379221624,1755195060983,-12000.0,0.00027397,7]
[379221625,1755195060993,-3870.22,0.00027397,2]
[379221626,1755195061002,-284.4177255,0.00027397,2]
[379221627,1755195061013,-12000.0,0.00027397,7]
[379221628,1755195061023,-12000.0,0.00027397,7]
[379221629,1755195061032,-400.0,0.00027397,2]
[379221630,1755195061045,-1449.95,0.00027397,2]
[379221631,1755195061055,-607.75,0.00027397,2]
[379221632,1755195061064,-12000.0,0.00027397,7]
[379221633,1755195061074,-1725.49,0.00027397,2]
[379221634,1755195061083,-12000.0,0.00027397,7]
[379221635,1755195061093,-400.0,0.00027397,2]
[379221636,1755195061103,-400.0,0.00027397,2]
[379221637,1755195061113,-473.44,0.00027397,2]
[379221638,1755195061123,-12000.0,0.00027397,7]
[379221639,1755195061132,-400.0,0.00027397,2]
[379221640,1755195061142,-1633.55,0.00027397,2]
[379221641,1755195061153,-1228.031273,0.00027397,7]
[379221642,1755195061162,-653.13,0.00027397,2]
[379221643,1755195061173,-12000.0,0.00027397,7]
[379221644,1755195061183,-1228.031273,0.00027397,7]
[379221645,1755195061194,-1173.59,0.00027397,2]
[379221646,1755195061204,-12000.0,0.00027397,7]
[379221647,1755195061214,-12000.0,0.00027397,7]
[379221648,1755195061225,-12000.0,0.00027397,7]
[379221649,1755195061235,-3063.12,0.00027397,2]
[379221650,1755195061245,-2990.26,0.00027397,2]
[379221651,1755195061255,-12000.0,0.00027397,7]
[379221652,1755195061265,-2182.31,0.00027397,2]
[379221653,1755195061275,-12000.0,0.00027397,7]
[379221654,1755195061289,-12000.0,0.00027397,7]
[379221655,1755195061299,-492.3,0.00027397,2]
[379221656,1755195061309,-3744.83,0.00027397,2]
[379221657,1755195061319,-400.0,0.00027397,2]
[379221658,1755195061328,-12000.0,0.00027397,7]
[379221659,1755195061338,-531.2,0.00027397,2]
[379221660,1755195061348,-400.0,0.00027397,2]
[379221661,1755195061357,-1228.031273,0.00027397,7]
[379221662,1755195061367,-12000.0,0.00027397,7]
[379221663,1755195061377,-400.0,0.00027397,2]
[379221664,1755195061387,-1228.031273,0.00027397,7]
[379221665,1755195061397,-12000.0,0.00027397,7]
[379221666,1755195061406,-2789.82,0.00027397,2]
[379221667,1755195061416,-937.65,0.00027397,2]
[379221668,1755195061427,-12000.0,0.00027397,7]
[379221669,1755195061437,-799.73,0.00027397,2]
[379221670,1755195061447,-799.73,0.00027397,2]
[379221671,1755195061457,-2500.17,0.00027397,2]
[379221672,1755195061467,-12000.0,0.00027397,7]
[379221673,1755195061477,-799.73,0.00027397,2]
[379221674,1755195061486,-799.73,0.00027397,2]
[379221675,1755195061496,-2907.668243,0.00027397,7]
[379221676,1755195061506,-799.73,0.00027397,2]
[379221677,1755195061516,-799.73,0.00027397,2]
[379221678,1755195061526,-799.73,0.00027397,2]
[379221679,1755195061535,-799.73,0.00027397,2]
[379221680,1755195061546,-799.73,0.00027397,2]
[379221681,1755195061556,-799.73,0.00027397,2]
[379221682,1755195061567,-799.73,0.00027397,2]
[379221683,1755195061577,-799.73,0.00027397,2]
[379221684,1755195061587,-489.77,0.00027397,2]
[379221685,1755195061597,-1464.87,0.00027397,2]
[379221686,1755195061606,-799.73,0.00027397,2]
[379221687,1755195061616,-799.73,0.00027397,2]
[379221688,1755195061627,-1064.82,0.00027397,2]
[379221689,1755195061637,-2111.03,0.00027397,2]
[379221690,1755195061648,-400.0,0.00027397,2]
[379221691,1755195061658,-799.73,0.00027397,2]
[379221692,1755195061668,-799.73,0.00027397,2]
[379221693,1755195061679,-540.42,0.00027397,2]
[379221694,1755195061689,-799.73,0.00027397,2]
[379221695,1755195061700,-2184.69,0.00027397,2]
[379221696,1755195061711,-799.73,0.00027397,2]
[379221697,1755195061722,-1964.1,0.00027397,2]
[379221698,1755195061732,-400.0,0.00027397,2]
[379221699,1755195061742,-4454.59,0.00027397,2]
[379221700,1755195061752,-400.0,0.00027397,2]
[379221701,1755195061762,-5856.63,0.00027397,2]
[379221702,1755195061772,-696.07,0.00027397,2]
[379221703,1755195061782,-885.97,0.00027397,2]
[379221704,1755195061797,-400.0,0.00027397,2]
[379221705,1755195061808,-444.86,0.00027397,2]
[379221706,1755195061818,-400.0,0.00027397,2]
[379221707,1755195061828,-4413.69,0.00027397,2]
[379221708,1755195061838,-400.0,0.00027397,2]
[379221709,1755195061849,-400.0,0.00027397,2]
[379221710,1755195061859,-400.0,0.00027397,2]
[379221711,1755195061872,-435.12,0.00027397,2]
[379221712,1755195061882,-151.0,0.00027397,7]
[379221713,1755195061892,-400.0,0.00027397,2]
[379221714,1755195061901,-400.0,0.00027397,2]
[379221715,1755195061912,-151.0,0.00027397,7]
[379221716,1755195061922,-400.0,0.00027397,2]
[379221717,1755195061931,-2724.55,0.00027397,2]
[379221718,1755195061943,-151.0,0.00027397,7]
[379221719,1755195061954,-898.88,0.00027397,2]
[379221720,1755195061963,-3286.93,0.00027397,2]
[379221721,1755195061973,-942.84,0.00027397,2]
[379221722,1755195061983,-151.0,0.00027397,7]
[379221723,1755195061993,-151.0,0.00027397,7]
[379221724,1755195062003,-151.0,0.00027397,7]
[379221725,1755195062013,-3853.88,0.00027397,2]
[379221726,1755195062023,-2603.66,0.00027397,2]
[379221727,1755195062033,-400.0,0.00027397,2]
[379221728,1755195062046,-822.54,0.00027397,2]
[379221729,1755195062056,-463.70491804,0.00027397,2]
[379221730,1755195062066,-400.0,0.00027397,2]
[379221731,1755195062076,-400.0,0.00027397,2]
[379221732,1755195062086,-400.0,0.00027397,2]
[379221733,1755195062096,-151.0,0.00027397,7]
[379221734,1755195062105,-400.0,0.00027397,2]
[379221735,1755195062115,-151.0,0.00027397,7]
[379221736,1755195062126,-151.0,0.00027397,7]
[379221737,1755195062136,-400.0,0.00027397,2]
[379221738,1755195062146,-408.16,0.00027397,2]
[379221739,1755195062155,-151.0,0.00027397,7]
[379221740,1755195062165,-151.0,0.00027397,7]
[379221741,1755195062175,-274.196391,0.00027397,7]
[379221742,1755195062185,-400.0,0.00027397,2]
[379221743,1755195062195,-400.0,0.00027397,2]
[379221744,1755195062206,-561.19,0.00027397,2]
[379221745,1755195062218,-400.0,0.00027397,2]
[379221746,1755195062229,-830.9,0.00027397,2]
[379221747,1755195062240,-400.0,0.00027397,2]
[379221748,1755195062257,-2408.16,0.00027397,2]
[379221749,1755195062277,-583.36,0.00027397,2]
[379221750,1755195062300,-400.0,0.00027397,2]
[379221751,1755195062320,-400.0,0.00027397,2]
[379221752,1755195062334,-400.0,0.00027397,2]
[379221753,1755195062344,-2294.35,0.00027397,2]
[379221754,1755195062354,-400.0,0.00027397,2]
[379221755,1755195062365,-2458.3,0.00027397,2]
[379221756,1755195062375,-2709.33,0.00027397,2]
[379221757,1755195062386,-3815.13,0.00027397,2]
[379221758,1755195062398,-400.0,0.00027397,2]
[379221759,1755195062410,-400.0,0.00027397,2]
[379221760,1755195062421,-400.0,0.00027397,2]
[379221761,1755195062431,-931.311606,0.00027397,7]
[379221762,1755195062442,-931.311606,0.00027397,7]
[379221763,1755195062452,-546.6,0.00027397,2]
[379221764,1755195062463,-400.0,0.00027397,2]
[379221765,1755195062474,-400.0,0.00027397,2]
[379221766,1755195062484,-1869.73,0.00027397,2]
[379221767,1755195062494,-400.0,0.00027397,2]
[379221768,1755195062504,-1139.1,0.00027397,2]
[379221769,1755195062514,-400.0,0.00027397,2]
[379221770,1755195062524,-931.311606,0.00027397,7]
[379221771,1755195062546,-931.311606,0.00027397,7]
[379221772,1755195062557,-400.0,0.00027397,2]
[379221773,1755195062567,-400.0,0.00027397,2]
[379221774,1755195062578,-291.16747412,0.00027397,2]
[379221775,1755195062588,-1936.14,0.00027397,2]
[379221776,1755195062598,-400.0,0.00027397,2]
[379221777,1755195062608,-3139.18,0.00027397,2]
[379221778,1755195062619,-400.0,0.00027397,2]
[379221779,1755195062629,-400.0,0.00027397,2]
[379221780,1755195062639,-400.0,0.00027397,2]
[379221781,1755195062650,-3630.47,0.00027397,2]
[379221782,1755195062660,-646.28,0.00027397,2]
[379221783,1755195062670,-400.0,0.00027397,2]
[379221784,1755195062680,-400.0,0.00027397,2]
[379221785,1755195062691,-418.38,0.00027397,2]
[379221786,1755195062701,-400.0,0.00027397,2]
[379221787,1755195062711,-5505.55,0.00027397,2]
[379221788,1755195062721,-400.0,0.00027397,2]
[379221789,1755195062732,-400.0,0.00027397,2]
[379221790,1755195062743,-400.0,0.00027397,2]
[379221791,1755195062753,-2100.49,0.00027397,2]
[379221792,1755195062763,-400.0,0.00027397,2]
[379221793,1755195062773,-3379.583945,0.00027397,7]
[379221794,1755195062783,-420.73,0.00027397,2]
[379221795,1755195062796,-400.0,0.00027397,2]
[379221796,1755195062805,-3379.583945,0.00027397,7]
[379221797,1755195062815,-1669.3,0.00027397,2]
[379221798,1755195062825,-584.19,0.00027397,2]
[379221799,1755195062835,-400.0,0.00027397,2]
[379221800,1755195062845,-3845.11,0.00027397,2]
[379221801,1755195062855,-647.32,0.00027397,2]
[379221802,1755195062868,-400.0,0.00027397,2]
[379221803,1755195062879,-3536.72,0.00027397,2]
[379221804,1755195062889,-601.76,0.00027397,2]
[379221805,1755195062899,-482.02,0.00027397,2]
[379221806,1755195062911,-400.0,0.00027397,2]
[379221807,1755195062921,-496.4,0.00027397,2]
[379221808,1755195062932,-514.96,0.00027397,2]
[379221809,1755195062942,-525.66,0.00027397,2]
[379221810,1755195062955,-465.82,0.00027397,2]
[379221811,1755195062965,-3379.583945,0.00027397,7]
[379221812,1755195062975,-3379.583945,0.00027397,7]
[379221813,1755195062986,-552.26,0.00027397,2]
[379221814,1755195062995,-661.71,0.00027397,2]
[379221815,1755195063005,-400.0,0.00027397,2]
[379221816,1755195063015,-273.8437,0.00027397,7]
[379221817,1755195063025,-591.61,0.00027397,2]
[379221818,1755195063035,-1369.06,0.00027397,2]
[379221819,1755195063046,-1500.0,0.00027397,28]
[379221820,1755195063056,-400.0,0.00027397,2]
[379221821,1755195063066,-273.8437,0.00027397,7]
[379221822,1755195063076,-1500.0,0.00027397,28]
[379221823,1755195063086,-1243.23,0.00027397,2]
[379221824,1755195063096,-273.8437,0.00027397,7]
[379221825,1755195063106,-1500.0,0.00027397,28]
[379221826,1755195063117,-1796.97,0.00027397,2]
[379221827,1755195063126,-273.8437,0.00027397,7]
[379221828,1755195063136,-1500.0,0.00027397,28]
[379221829,1755195063145,-273.8437,0.00027397,7]
[379221830,1755195063156,-1500.0,0.00027397,28]
[379221831,1755195063166,-1500.0,0.00027397,28]
[379221832,1755195063176,-3398.07,0.00027397,2]
[379221833,1755195063186,-1975.16,0.00027397,2]
[379221834,1755195063196,-1500.0,0.00027397,28]
[379221835,1755195063207,-400.0,0.00027397,2]
[379221836,1755195063217,-1500.0,0.00027397,28]
[379221837,1755195063227,-494.56,0.00027397,2]
[379221838,1755195063236,-1500.0,0.00027397,28]
[379221839,1755195063246,-1500.0,0.00027397,28]
[379221840,1755195063256,-273.8437,0.00027397,7]
[379221841,1755195063266,-1500.0,0.00027397,28]
[379221842,1755195063276,-1159.05,0.00027397,2]
[379221843,1755195063287,-1500.0,0.00027397,28]
[379221844,1755195063298,-400.0,0.00027397,2]
[379221845,1755195063308,-1500.0,0.00027397,28]
[379221846,1755195063318,-273.8437,0.00027397,7]
[379221847,1755195063328,-400.0,0.00027397,2]
[379221848,1755195063338,-1500.0,0.00027397,28]
[379221849,1755195063348,-273.8437,0.00027397,7]
[379221850,1755195063358,-4560.98,0.00027397,2]
[379221851,1755195063368,-1082.44,0.00027397,2]
[379221852,1755195063378,-1500.0,0.00027397,28]
[379221853,1755195063388,-400.0,0.00027397,2]
[379221854,1755195063399,-273.8437,0.00027397,7]
[379221855,1755195063410,-400.0,0.00027397,2]
[379221856,1755195063421,-273.8437,0.00027397,7]
[379221857,1755195063432,-1500.0,0.00027397,28]
[379221858,1755195063442,-1500.0,0.00027397,28]
[379221859,1755195063452,-1500.0,0.00027397,28]
[379221860,1755195063463,-1500.0,0.00027397,28]
[379221861,1755195063473,-1500.0,0.00027397,28]
[379221862,1755195063484,-400.0,0.00027397,2]
[379221863,1755195063495,-1500.0,0.00027397,28]
[379221864,1755195063505,-547.37,0.00027397,2]
[379221865,1755195063515,-1500.0,0.00027397,28]
[379221866,1755195063526,-400.0,0.00027397,2]
[379221867,1755195063537,-1500.0,0.00027397,28]
[379221868,1755195063547,-400.0,0.00027397,2]
[379221869,1755195063557,-1500.0,0.00027397,28]
[379221870,1755195063568,-400.0,0.00027397,2]
[379221871,1755195063579,-400.0,0.00027397,2]
[379221872,1755195063589,-1500.0,0.00027397,28]
[379221873,1755195063599,-400.0,0.00027397,2]
[379221874,1755195063610,-1121.11,0.00027397,2]
[379221875,1755195063620,-400.0,0.00027397,2]
[379221876,1755195063630,-1500.0,0.00027397,28]
[379221877,1755195063640,-1420.88,0.00027397,2]
[379221878,1755195063651,-1500.0,0.00027397,28]
[379221879,1755195063661,-10669.76,0.00027397,2]
[379221880,1755195063671,-2991.8,0.00027397,2]
[379221881,1755195063682,-1500.0,0.00027397,28]
[379221882,1755195063692,-4331.49,0.00027397,2]
[379221883,1755195063702,-1500.0,0.00027397,28]
[379221884,1755195063713,-1239.76,0.00027397,2]
[379221885,1755195063724,-1500.0,0.00027397,28]
[379221886,1755195063735,-1500.0,0.00027397,28]
[379221887,1755195063745,-5050.81,0.00027397,2]
[379221888,1755195063754,-400.0,0.00027397,2]
[379221889,1755195063764,-1500.0,0.00027397,28]
[379221890,1755195063774,-478.85,0.00027397,2]
[379221891,1755195063783,-400.0,0.00027397,2]
[379221892,1755195063794,-1500.0,0.00027397,28]
[379221893,1755195063804,-959.04,0.00027397,2]
[379221894,1755195063814,-1500.0,0.00027397,28]
[379221895,1755195063823,-400.0,0.00027397,2]
[379221896,1755195063833,-1500.0,0.00027397,28]
[379221897,1755195063843,-1160.58,0.00027397,2]
[379221898,1755195063852,-400.0,0.00027397,2]
[379221899,1755195063863,-1500.0,0.00027397,28]
[379221900,1755195063878,-400.0,0.00027397,2]
[379221901,1755195063888,-400.0,0.00027397,2]
[379221902,1755195063899,-1500.0,0.00027397,28]
[379221903,1755195063910,-485.4,0.00027397,2]
[379221904,1755195063920,-1106.31,0.00027397,2]
[379221905,1755195063931,-400.0,0.00027397,2]
[379221906,1755195063942,-400.0,0.00027397,2]
[379221907,1755195063952,-1500.0,0.00027397,28]
[379221908,1755195063962,-406.42,0.00027397,2]
[379221909,1755195063972,-1500.0,0.00027397,28]
[379221910,1755195063981,-400.0,0.00027397,2]
[379221911,1755195063991,-1500.0,0.00027397,28]
[379221912,1755195064000,-1500.0,0.00027397,28]
[379221913,1755195064010,-1500.0,0.00027397,28]
[379221914,1755195064021,-1500.0,0.00027397,28]
[379221915,1755195064032,-1500.0,0.00027397,28]
[379221916,1755195064042,-3469.09,0.00027397,2]
[379221917,1755195064053,-400.0,0.00027397,2]
[379221918,1755195064063,-1500.0,0.00027397,28]
[379221919,1755195064073,-948.99,0.00027397,2]
[379221920,1755195064083,-1500.0,0.00027397,28]
[379221921,1755195064093,-500.0,0.00027397,2]
[379221922,1755195064103,-500.0,0.00027397,2]
[379221923,1755195064113,-1127.45,0.00027397,2]
[379221924,1755195064123,-1500.0,0.00027397,28]
[379221925,1755195064133,-500.0,0.00027397,2]
[379221926,1755195064142,-2782.2,0.00027397,2]
[379221927,1755195064152,-926.12,0.00027397,2]
[379221928,1755195064161,-400.0,0.00027397,2]
[379221929,1755195064171,-5190.73,0.00027397,2]
[379221930,1755195064180,-500.0,0.00027397,2]
[379221931,1755195064190,-500.0,0.00027397,2]
[379221932,1755195064200,-2913.12,0.00027397,2]
[379221933,1755195064209,-500.0,0.00027397,2]
[379221934,1755195064219,-813.939348,0.00027397,28]
[379221935,1755195064229,-562.13391508,0.00027397,2]
[379221936,1755195064239,-400.0,0.00027397,2]
[379221937,1755195064249,-2444.8,0.00027397,2]
[379221938,1755195064259,-20753.20322211,0.00027397,2]
[379221939,1755195064268,-1550.16,0.00027397,2]
[379221940,1755195064278,-400.0,0.00027397,2]
[379221941,1755195064288,-400.0,0.00027397,2]
[379221942,1755195064297,-656.995741,0.00027397,7]
[379221943,1755195064307,-656.995741,0.00027397,7]
[379221944,1755195064317,-400.0,0.00027397,2]
[379221945,1755195064326,-400.0,0.00027397,2]
[379221946,1755195064335,-400.0,0.00027397,2]
[379221947,1755195064345,-151.0,0.00027397,7]
[379221948,1755195064356,-681.94,0.00027397,2]
[379221949,1755195064366,-400.0,0.00027397,2]
[379221950,1755195064377,-151.0,0.00027397,7]
[379221951,1755195064387,-915.86,0.00027397,2]
[379221952,1755195064396,-400.0,0.00027397,2]
[379221953,1755195064406,-656.995741,0.00027397,7]
[379221954,1755195064416,-473.37,0.00027397,2]
[379221955,1755195064426,-3451.78,0.00027397,2]
[379221956,1755195064436,-656.995741,0.00027397,7]
[379221957,1755195064445,-400.0,0.00027397,2]
[379221958,1755195064455,-400.0,0.00027397,2]
[379221959,1755195064465,-400.0,0.00027397,2]
[379221960,1755195064477,-874.89,0.00027397,2]
[379221961,1755195064488,-400.0,0.00027397,2]
[379221962,1755195064498,-1253.13,0.00027397,2]
[379221963,1755195064508,-2181.19,0.00027397,2]
[379221964,1755195064519,-400.0,0.00027397,2]
[379221965,1755195064529,-2464.2,0.00027397,2]
[379221966,1755195064539,-988.79,0.00027397,2]
[379221967,1755195064548,-400.0,0.00027397,2]
[379221968,1755195064558,-169.237734,0.00027397,7]
[379221969,1755195064567,-2138.76,0.00027397,2]
[379221970,1755195064577,-1827.29,0.00027397,2]
[379221971,1755195064587,-1778.4,0.00027397,2]
[379221972,1755195064596,-1041.28,0.00027397,2]
[379221973,1755195064607,-2658.96,0.00027397,2]
[379221974,1755195064616,-1106.28,0.00027397,2]
[379221975,1755195064627,-400.0,0.00027397,2]
[379221976,1755195064636,-520.23,0.00027397,2]
[379221977,1755195064646,-400.0,0.00027397,2]
[379221978,1755195064656,-40542.1,0.00027397,2]
[379221979,1755195064665,-761.745948,0.00027397,7]
[379221980,1755195064675,-1438.74,0.00027397,2]
[379221981,1755195064684,-2331.27,0.00027397,14]
[379221982,1755195064695,-400.0,0.00027397,2]
[379221983,1755195064704,-2020.56,0.00027397,2]
[379221984,1755195064713,-761.745948,0.00027397,7]
[379221985,1755195064723,-5907.33,0.00027397,2]
[379221986,1755195065093,-488.37482069,0.00027397,2]
[379221987,1755195065103,-1335.5,0.00027397,2]
[379221988,1755195065113,-400.0,0.00027397,2]
[379221989,1755195065123,-400.0,0.00027397,2]
[379221990,1755195065133,-400.0,0.00027397,2]
[379221991,1755195065143,-400.0,0.00027397,2]
[379221992,1755195065152,-400.0,0.00027397,2]
[379221993,1755195065162,-761.745948,0.00027397,7]
[379221994,1755195065171,-761.745948,0.00027397,7]
[379221995,1755195065181,-1470.55,0.00027397,2]
[379221996,1755195065191,-546.29,0.00027397,2]
[379221997,1755195065201,-400.0,0.00027397,2]
[379221998,1755195065210,-400.0,0.00027397,2]
[379221999,1755195065220,-2518.83,0.00027397,2]
[379222000,1755195065229,-6272.77,0.00027397,2]
[379222001,1755195065239,-400.0,0.00027397,2]
[379222002,1755195065248,-400.0,0.00027397,2]
[379222003,1755195065258,-1224.21,0.00027397,2]
[379222004,1755195065268,-400.0,0.00027397,2]
[379222005,1755195065278,-400.0,0.00027397,2]
[379222006,1755195065288,-400.0,0.00027397,2]
[379222007,1755195065299,-1762.73,0.00027397,2]
[379222008,1755195065309,-400.0,0.00027397,2]
[379222009,1755195065319,-1104.76,0.00027397,2]
[379222010,1755195065329,-6490.32,0.00027397,2]
[379222011,1755195065339,-400.0,0.00027397,2]
[379222012,1755195065348,-400.0,0.00027397,2]
[379222013,1755195065358,-3110.9,0.00027397,2]
[379222014,1755195065368,-400.73,0.00027397,2]
[379222015,1755195065378,-400.0,0.00027397,2]
[379222016,1755195065387,-4732.77,0.00027397,2]
[379222017,1755195065397,-974.4,0.00027397,2]
[379222018,1755195065407,-400.0,0.00027397,2]
[379222019,1755195065416,-400.0,0.00027397,2]
[379222020,1755195065426,-890.15,0.00027397,2]
[379222021,1755195065436,-400.0,0.00027397,2]
[379222022,1755195065446,-1175.64,0.00027397,2]
[379222023,1755195065456,-3094.1,0.00027397,2]
[379222024,1755195065466,-400.0,0.00027397,2]
[379222025,1755195065476,-400.0,0.00027397,2]
[379222026,1755195065486,-6676.94,0.00027397,2]
[379222027,1755195065496,-3620.17,0.00027397,2]
[379222028,1755195065506,-400.0,0.00027397,2]
[379222029,1755195065516,-3091.92,0.00027397,2]
[379222030,1755195065525,-3432.18,0.00027397,2]
[379222031,1755195065535,-3532.89,0.00027397,2]
[379222032,1755195065547,-400.0,0.00027397,2]
[379222033,1755195065555,-400.0,0.00027397,2]
[379222034,1755195065564,-2670.85,0.00027397,2]
[379222035,1755195065574,-400.0,0.00027397,2]